bitfinex/quotes_ETHUSD_20240621
["timestamp","ask_amount","ask_price","bid_price","bid_amount"]
[1718977559346,0.49800395,3476.2,3476.0,2.30145]
[1718977559608,3.0,3477.4,3475.7,2.30168]
[1718977559748,5.58987944,3477.0,3475.6,2.3017]
[1718977559950,0.49803611,3476.9,3475.4,2.30183]
[1718977560265,3.0,3477.0,3475.5,2.30182]
[1718977560266,0.49803611,3476.8,3475.5,2.30182]
[1718977560470,3.0,3477.0,3475.3,2.30194]
[1718977560678,3.0,3477.0,3474.6,2.3024]
[1718977560679,3.58633652,3476.9,3474.6,2.3024]
[1718977560990,6.58641551,3476.8,3475.4,2.30187]
[1718977561166,2.30153,3476.0,3475.2,2.30201]
[1718977561364,2.30153,3476.0,3474.9,2.30217]
[1718977561365,2.30195,3475.4,3474.7,2.30235]
[1718977561701,2.30189,3475.4,3474.8,2.30224]
[1718977561858,5.0092,3475.9,3474.5,2.30247]
[1718977561859,0.49817434,3475.3,3474.5,2.30247]
[1718977562195,0.49817434,3475.2,3474.9,2.30216]
[1718977562493,0.49817502,3475.1,3475.0,6.90645]
[1718977562809,4.8487,3476.6,3475.0,2.706]
[1718977563100,0.49802571,3476.5,3475.8,2.3016]
[1718977563306,0.49802571,3476.4,3476.3,2.30129]
[1718977563510,0.49802571,3476.4,3476.3,6.90387]
[1718977563713,0.49802571,3476.4,3476.3,4.60258]
[1718977564191,0.49802571,3476.4,3476.1,2.30142]
[1718977564394,0.49802571,3476.3,3475.6,2.30174]
[1718977564615,0.49802571,3476.3,3475.4,3.0]
[1718977564616,0.49802571,3476.2,3475.7,2.30169]
[1718977564766,0.49802571,3476.1,3475.4,2.30188]
[1718977565107,1.49407898,3476.0,3475.3,2.30195]
[1718977565406,0.49802571,3475.9,3475.5,2.30182]
[1718977565569,2.72405327,3477.1,3475.6,2.30172]
[1718977565570,1.728,3477.1,3475.6,2.30172]
[1718977565770,1.49428825,3475.8,3475.7,2.30169]
[1718977565999,0.49809608,3475.8,3475.7,2.30169]
[1718977566571,0.49809608,3475.8,3474.9,2.3022]
[1718977566913,3.0,3477.1,3474.9,2.3022]
[1718977566914,1.49428825,3475.7,3475.3,2.30189]
[1718977567209,1.49428825,3475.6,3475.5,2.30182]
[1718977567567,0.49809608,3475.6,3475.5,4.60364]
[1718977567908,0.49809608,3475.6,3475.5,9.20728]
[1718977568205,0.49809608,3475.6,3475.5,8.646788]
[1718977568411,0.99619217,3476.8,3475.5,8.646788]
[1718977568412,4.8487,3477.2,3475.5,1.191328]
[1718977568639,4.8487,3477.2,3475.2,2.30197]
[1718977568640,5.67770132,3477.1,3475.2,2.30197]
[1718977568774,5.67770132,3477.1,3474.4,2.3025]
[1718977568775,6.5157,3476.9,3474.8,2.30228]
[1718977569116,1.728,3476.3,3474.1,2.30273]
[1718977569323,5.5377,3476.4,3474.5,2.30248]
[1718977569324,1.728,3476.1,3474.5,2.30248]
[1718977569472,1.728,3476.1,3474.5,2.30247]
[1718977569473,5.32323022,3476.0,3474.5,2.30247]
[1718977569794,5.67859218,3475.9,3474.9,2.30216]
[1718977570110,5.67859218,3475.8,3475.2,2.30201]
[1718977570312,5.67859218,3475.7,3475.2,2.30201]
[1718977570521,5.67859218,3475.6,3474.9,2.30216]
[1718977570675,0.49818961,3475.5,3475.3,2.30192]
[1718977570890,1.49449918,3475.4,3474.9,2.30221]
[1718977571093,3.0,3476.3,3474.3,2.706]
[1718977571094,1.49449918,3475.3,3474.3,2.706]
[1718977571359,2.09242829,3475.2,3474.5,2.30248]
[1718977571638,2.09249885,3475.1,3474.2,2.30263]
[1718977571952,2.09249885,3475.1,3473.9,2.30288]
[1718977571953,1.49467104,3475.0,3473.9,2.30288]
[1718977572100,9.59386199,3474.9,3473.9,2.30288]
[1718977572300,9.59386199,3474.9,3474.1,2.30275]
[1718977572301,3.5872105,3474.8,3474.1,2.30275]
[1718977572532,3.5872105,3474.8,3473.9,2.30282]
[1718977572533,2.59076314,3474.7,3473.9,2.30282]
[1718977572734,3.5872105,3474.6,3473.7,2.30301]
[1718977572901,2.59076314,3474.5,3473.5,2.30315]
[1718977573095,4.68374579,3474.4,3473.6,2.30308]
[1718977573337,3.58765369,3474.3,3473.7,2.253]
[1718977573557,2.59135536,3474.2,3473.2,2.30334]
[1718977573847,2.59135536,3474.1,3473.5,2.30314]
[1718977574146,0.49822368,3474.0,3473.5,2.30314]
[1718977574435,0.49822368,3473.9,3473.5,2.30314]
[1718977574667,0.49837459,3473.8,3473.6,2.30308]
[1718977574821,0.49837459,3473.7,3473.6,2.30308]
[1718977575143,0.49837459,3473.7,3473.5,2.30314]
[1718977575294,3.0,3474.8,3473.5,2.30314]
[1718977575295,0.49837459,3473.6,3473.5,2.30314]
[1718977575493,0.49837459,3473.6,3473.1,2.3034]
[1718977575494,0.49837459,3473.6,3472.9,2.30351]
[1718977575735,2.59189411,3473.5,3472.8,0.121277]
[1718977575940,0.49837459,3473.4,3472.8,0.121277]
[1718977576113,0.49837459,3473.3,3472.9,2.30354]
[1718977576298,0.49837459,3473.2,3472.8,0.121277]
[1718977576500,0.49837459,3473.1,3473.0,2.30348]
[1718977577162,0.49837459,3473.1,3472.8,0.121277]
[1718977577163,4.809,3473.0,3472.8,0.121277]
[1718977577656,4.6864443,3472.9,3472.8,1e-08]
[1718977578002,5.59248699,3472.9,3472.8,1e-08]
[1718977578247,7.68660979,3472.9,3472.8,1e-08]
[1718977578829,7.68659792,3472.9,3472.8,1e-08]
[1718977579227,4.68659792,3472.9,3472.8,1e-08]
[1718977580263,4.68659792,3472.9,3472.8,4.60722001]
[1718977580574,4.68659792,3472.9,3472.8,0.46072201]
[1718977580575,0.49845342,3472.9,3472.8,0.46072201]
[1718977580704,0.49845342,3472.9,3472.8,1e-08]
[1718977580909,2.59217694,3472.9,3472.8,1e-08]
[1718977581143,4.68591421,3472.9,3472.8,1e-08]
[1718977582002,7.68591421,3472.9,3472.8,1e-08]
[1718977583015,7.68674098,3472.9,3472.8,1e-08]
[1718977583202,7.68673847,3472.9,3472.8,1e-08]
[1718977584910,2.59240694,3472.9,3472.8,2.30361001]
[1718977585111,0.49865096,3472.9,3472.8,4.60722001]
[1718977585426,1.36261231,3473.1,3472.8,0.46072201]
[1718977585759,4.8264,3474.3,3473.1,4.60682]
[1718977585760,1.36261231,3473.2,3473.1,4.60682]
[1718977586066,0.75,3475.8,3473.1,4.60682]
[1718977586067,5.2767,3475.0,3474.2,2.30268]
[1718977586249,4.68463243,3474.9,3474.2,2.30265]
[1718977586453,5.2767,3475.0,3472.9,3.0]
[1718977586454,4.68460223,3474.8,3473.0,2.30348]
[1718977586619,1.36294276,3473.9,3473.4,2.30319]
[1718977586965,0.49834768,3473.8,3473.4,2.30319]
[1718977587110,5.2767,3475.0,3472.8,1e-08]
[1718977587316,1.36286407,3473.4,3473.0,2.30348]
[1718977587534,1.36268449,3473.4,3473.3,2.30328]
[1718977587739,1.86107413,3473.4,3473.3,4.60656]
[1718977587937,5.2767,3475.0,3473.5,4.6063]
[1718977587938,1.36268449,3473.6,3473.5,4.6063]
[1718977588123,1.36268449,3473.7,3473.6,4.60616]
[1718977588339,0.49834897,3473.7,3472.8,1e-08]
[1718977588544,1.36326163,3473.4,3472.9,2.30349]
[1718977588740,3.49834897,3474.9,3472.9,2.30349]
[1718977588741,1.36326163,3473.3,3472.9,2.30349]
[1718977588975,1.36326163,3473.3,3472.8,1e-08]
[1718977588976,1.36344746,3473.3,3472.8,1e-08]
[1718977589113,0.49844812,3473.2,3472.8,1e-08]
[1718977589473,0.49844812,3473.1,3472.8,1e-08]
[1718977589791,3.0,3473.8,3472.8,1e-08]
[1718977589792,0.49844812,3473.0,3472.8,1e-08]
[1718977590065,0.49844812,3473.7,3472.8,1e-08]
[1718977590234,4.68609418,3473.6,3472.8,1e-08]
[1718977590436,7.68609418,3473.5,3472.8,1e-08]
[1718977590643,4.9369,3473.3,3472.8,1e-08]
[1718977590944,7.68609418,3473.2,3472.8,1e-08]
[1718977591142,4.68609418,3473.1,3472.8,1e-08]
[1718977591361,4.728,3473.2,3472.8,1e-08]
[1718977591362,7.68609418,3473.0,3472.8,1e-08]
[1718977591664,2.59240104,3472.9,3472.8,1e-08]
[1718977591983,0.49855899,3472.9,3472.8,1e-08]
[1718977592486,0.49855899,3472.9,3472.8,4.60722001]
[1718977592621,1.36319036,3473.0,3472.9,4.6071]
[1718977592824,0.49849529,3473.7,3473.0,2.30342]
[1718977593026,4.68580921,3473.6,3472.8,1e-08]
[1718977593248,2.59228516,3473.5,3472.8,1e-08]
[1718977593434,3.49849529,3473.4,3473.0,2.30345]
[1718977593638,0.49849529,3473.3,3472.8,2.30355001]
[1718977593856,0.49849529,3473.2,3473.0,2.30348]
[1718977594072,0.49849529,3473.7,3473.6,2.30308]
[1718977594371,0.49843364,3473.7,3473.5,2.30315]
[1718977594674,0.49843364,3473.6,3473.1,2.30339]
[1718977594842,4.9528,3474.6,3473.1,2.30339]
[1718977594843,0.49843364,3473.5,3473.3,2.30322]
[1718977595053,4.9528,3474.6,3473.4,2.30321]
[1718977595244,4.68510164,3474.5,3473.4,2.30321]
[1718977595441,7.68510164,3474.4,3473.4,2.30321]
[1718977595647,4.18668144,3474.3,3473.4,2.30321]
[1718977595867,1.3634285,3473.5,3473.4,4.60642]
[1718977596042,0.49840531,3473.5,3473.2,2.30332]
[1718977596253,0.49840531,3473.4,3473.2,2.30332]
[1718977596484,3.0,3474.5,3473.3,2.30328]
[1718977596628,0.49840796,3474.4,3473.6,2.30308]
[1718977596830,0.49840796,3474.3,3473.6,2.30308]
[1718977597135,0.49840796,3474.2,3474.1,4.6055]
[1718977597344,5.0827,3475.2,3474.3,2.30257]
[1718977597547,2.59121236,3475.1,3474.4,2.30249]
[1718977597751,2.59121236,3475.1,3472.9,1.728]
[1718977597752,4.68429141,3475.0,3473.6,2.30305]
[1718977597971,4.68429141,3474.9,3474.0,2.30281]
[1718977598145,0.49831892,3474.8,3474.2,2.30268]
[1718977598345,5.0827,3475.2,3474.2,2.30268]
[1718977598346,0.49831892,3474.7,3474.2,2.30268]
[1718977598546,0.49831892,3474.6,3474.2,2.30263]
[1718977598786,3.0,3475.1,3474.4,2.30255]
[1718977598787,0.49831892,3474.5,3474.4,2.30255]
[1718977599084,0.49831892,3474.5,3474.2,2.30268]
[1718977599294,0.49831892,3474.4,3473.4,2.3032]
[1718977599447,0.49831892,3474.4,3473.4,0.23032]
[1718977599648,0.49831892,3474.3,3474.2,2.30268]
[1718977600148,3.0,3475.1,3474.2,2.30268]
[1718977600343,2.59127935,3475.0,3473.7,2.30301]
[1718977600548,7.68439715,3474.9,3473.7,2.303]
[1718977600858,4.68439715,3474.8,3474.3,2.30261]
[1718977601183,0.49831881,3474.7,3474.6,4.60484]
[1718977601492,0.49831881,3475.0,3474.9,2.30222]
[1718977601748,0.49831881,3475.0,3474.8,2.30228]
[1718977601749,5.0274,3476.5,3475.2,2.30201]
[1718977601869,5.0274,3476.5,3475.6,2.30175]
[1718977601870,4.68287738,3476.4,3475.6,2.30175]
[1718977602075,2.59053724,3476.3,3475.7,2.30168]
[1718977602384,0.49817622,3476.2,3475.7,2.30168]
[1718977602692,0.49817622,3476.1,3476.0,4.60298]
[1718977602852,5.1592,3477.3,3476.2,2.30134]
[1718977603056,5.1592,3477.3,3476.0,2.30149]
[1718977603057,4.68160068,3477.2,3476.3,2.30127]
[1718977603351,5.1592,3477.3,3476.3,2.30127]
[1718977603352,2.09195853,3477.1,3476.3,2.30127]
[1718977603703,1.36582466,3476.6,3475.9,2.30156]
[1718977603989,1.36582466,3476.5,3475.1,2.709]
[1718977604192,1.36582741,3476.6,3476.1,2.30141]
[1718977604407,1.36582741,3476.7,3476.1,2.30142]
[1718977604568,1.36582741,3476.8,3476.2,2.30135]
[1718977604901,1.36582741,3476.9,3476.1,2.30142]
[1718977605188,5.1592,3477.3,3475.7,2.30166]
[1718977605189,2.05025292,3476.8,3476.2,2.30136]
[1718977605397,2.05025292,3476.8,3475.2,3.12291]
[1718977605398,0.18638663,3476.8,3475.3,2.30192]
[1718977605600,0.18638663,3476.8,3475.7,2.30164]
[1718977605757,2.58999778,3476.7,3475.7,2.30164]
[1718977605957,3.0,3476.6,3475.6,2.30171]
[1718977606163,1.55216208,3476.8,3475.2,0.55]
[1718977606164,3.95578908,3476.5,3475.8,2.30162]
[1718977606481,0.1552214,3476.7,3476.3,2.30129]
[1718977606695,4.36577545,3477.2,3476.4,2.30121]
[1718977606999,2.58976162,3477.1,3476.4,2.30121]
[1718977607169,2.58976162,3477.1,3476.1,2.30137]
[1718977607170,6.52497545,3477.3,3476.5,2.30116]
[1718977607371,5.1592,3477.3,3476.5,2.30116]
[1718977607576,4.36577545,3477.6,3476.7,2.301]
[1718977607776,4.36577545,3477.9,3476.9,2.30087]
[1718977607998,1.36577545,3478.2,3476.7,2.30097]
[1718977608291,1.36577545,3478.0,3476.7,2.30097]
[1718977608480,2.09114361,3477.9,3476.5,2.30116]
[1718977608694,5.1332,3478.5,3476.7,2.30102]
[1718977608867,1.36634586,3478.1,3476.7,2.30102]
[1718977609067,2.09129926,3478.0,3476.8,2.30094]
[1718977609289,0.34576451,3477.9,3476.4,2.3012]
[1718977609503,0.34576451,3477.9,3476.5,0.55]
[1718977609707,5.1332,3478.5,3476.5,2.85116]
[1718977609708,1.36634586,3478.3,3476.5,2.85116]
[1718977609866,3.95553423,3478.2,3476.5,2.85116]
[1718977610073,2.58918668,3478.1,3476.6,2.30107]
[1718977610263,5.09126753,3478.0,3477.0,2.30082]
[1718977610569,5.09120265,3477.9,3476.5,2.30116]
[1718977610818,2.09120265,3477.8,3476.3,2.30128]
[1718977611020,9.06612396,3477.7,3476.3,2.30129]
[1718977611313,2.5891781,3477.6,3476.8,2.30094]
[1718977611599,6.68606613,3477.7,3476.9,2.30088]
[1718977611600,5.09153854,3477.5,3476.9,2.30088]
[1718977611801,2.09153854,3477.5,3477.0,2.30082]
[1718977612100,2.09153854,3477.5,3477.1,2.30075]
[1718977612719,2.09153854,3477.5,3477.3,2.30062]
[1718977614677,2.09153854,3477.5,3477.1,2.30075]
[1718977614907,2.09153854,3477.5,3476.5,4.9548]
[1718977614908,2.09153854,3477.5,3476.6,2.30103]
[1718977615265,2.09153854,3477.5,3477.1,2.30076]
[1718977615500,2.09153854,3477.5,3476.7,2.30103]
[1718977615711,2.09153854,3477.5,3476.6,2.30103]
[1718977615712,2.09153854,3477.5,3476.6,4.60206]
[1718977615906,2.09153854,3477.5,3476.6,2.30103]
[1718977616114,0.20915385,3477.4,3476.6,2.30103]
[1718977616329,0.20915385,3477.4,3476.7,1.758048]
[1718977616534,3.0,3478.1,3476.7,1.758048]
[1718977616874,3.0,3478.1,3476.7,2.30103]
[1718977617077,3.0,3478.1,3476.8,2.30096]
[1718977617537,2.09129175,3478.0,3476.5,2.30116]
[1718977617694,3.0,3478.1,3476.7,2.30102]
[1718977617695,4.3661969,3478.1,3476.7,2.30102]
[1718977617895,3.0,3478.1,3476.4,2.30121]
[1718977618094,3.0,3478.1,3476.7,2.30102]
[1718977618095,3.95566319,3478.0,3476.7,2.30102]
[1718977618302,3.0,3478.1,3476.8,2.30096]
[1718977618615,3.0,3478.1,3476.7,2.30102]
[1718977618616,4.3661969,3478.1,3476.7,2.30102]
[1718977618838,3.0,3478.1,3476.9,2.30086]
[1718977618984,0.497955,3478.0,3476.9,2.30086]
[1718977619308,3.0,3478.1,3476.9,2.30086]
[1718977619483,4.3661969,3478.1,3476.9,2.30089]
[1718977619678,3.0,3478.1,3476.9,2.30089]
[1718977619891,4.3661969,3478.1,3476.9,2.30089]
[1718977620095,4.3661969,3478.1,3477.0,2.3008]
[1718977620328,4.3661969,3478.1,3476.9,2.30089]
[1718977620329,5.0973,3478.2,3476.9,2.30089]
[1718977620539,5.0973,3478.2,3476.5,2.30115]
[1718977620821,1.36650879,3477.7,3476.4,2.30122]
[1718977621020,3.09450879,3477.5,3475.7,2.30167]
[1718977621314,1.36650879,3476.9,3476.2,2.30135]
[1718977621539,0.49809939,3476.8,3476.2,2.30135]
[1718977621683,1.36634254,3476.9,3475.6,2.30174]
[1718977621880,1.36634254,3477.1,3476.5,2.30111]
[1718977622084,3.0,3477.3,3476.5,2.30111]
[1718977622085,4.36634254,3477.3,3476.5,2.30111]
[1718977622424,1.86437166,3477.2,3476.5,2.30111]
[1718977622589,3.0,3477.3,3476.5,2.30116]
[1718977622790,3.23072344,3477.2,3476.8,2.30095]
[1718977622979,3.0,3477.1,3476.8,2.30095]
[1718977623303,3.0,3477.1,3476.0,2.30144]
[1718977623304,1.36633748,3476.9,3476.0,2.30143]
[1718977623624,1.86440102,3476.8,3475.5,2.3018]
[1718977623785,1.53140102,3476.7,3476.1,2.30142]
[1718977623987,1.03333748,3476.7,3475.5,2.3018]
[1718977624191,1.36636241,3477.2,3475.5,2.3018]
[1718977624385,0.49804437,3477.1,3476.5,2.30113]
[1718977624735,0.49804437,3477.0,3476.2,2.30135]
[1718977624892,0.49804437,3477.1,3476.3,2.30128]
[1718977625088,2.09206594,3477.0,3476.3,2.30128]
[1718977625289,2.09206594,3477.0,3475.1,1.074745]
[1718977625290,4.8314,3476.8,3475.1,3.376775]
[1718977625484,3.49814406,3476.7,3475.4,2.30186]
[1718977625684,3.49814406,3476.7,3474.4,4.9028]
[1718977625685,3.49814406,3476.7,3475.6,2.30175]
[1718977625945,0.49814406,3476.6,3475.6,2.30175]
[1718977626104,0.49814406,3476.6,3475.7,2.30168]
[1718977626487,0.49814406,3476.6,3474.9,2.3022]
[1718977626825,2.09220257,3476.5,3475.0,2.30209]
[1718977627126,0.49814406,3476.4,3475.1,2.30209]
[1718977627435,3.49814406,3476.4,3474.9,2.30217]
[1718977627745,0.49814406,3476.3,3474.9,2.6014605]
[1718977627900,0.49814406,3476.3,3475.1,2.30206]
[1718977628091,0.49814406,3476.6,3475.2,2.30202]
[1718977628287,4.8828,3476.6,3475.0,2.30214]
[1718977628492,6.14045429,3476.5,3475.0,2.30214]
[1718977628693,6.14045429,3476.5,3474.6,2.993145]
[1718977628694,6.8625,3476.2,3474.6,2.30241]
[1718977628928,6.8625,3476.2,3473.7,4.9731]
[1718977628929,6.50009256,3475.2,3474.7,2.30234]
[1718977629102,6.50009256,3475.2,3474.4,2.3025]
[1718977629300,1.36559256,3475.1,3475.0,2.30215]
[1718977629653,1.36588221,3475.6,3475.3,2.30193]
[1718977629846,1.36588221,3475.8,3475.2,2.30202]
[1718977630123,1.36588221,3475.8,3475.4,2.30188]
[1718977630330,1.36588221,3475.8,3475.0,0.46045]
[1718977630331,1.36588221,3475.9,3475.6,2.30173]
[1718977630502,0.49811022,3475.8,3475.7,4.60338]
[1718977630711,1.36588221,3476.1,3476.0,2.30149]
[1718977630917,4.7734,3477.0,3476.0,2.30149]
[1718977630918,1.36588221,3476.2,3476.0,2.30149]
[1718977631128,4.7734,3477.0,3476.1,2.30142]
[1718977631459,1.36648573,3476.5,3476.1,2.761711]
[1718977631602,1.36648573,3476.6,3476.5,2.30116]
[1718977631932,1.36648573,3476.7,3476.6,2.30109]
[1718977632136,1.36648573,3476.8,3476.7,2.30103]
[1718977632498,1.36648573,3476.9,3476.5,2.30109]
[1718977632721,1.36648573,3476.7,3475.8,2.30162]
[1718977633025,1.36648573,3476.7,3474.9,1.728]
[1718977633026,1.36648573,3476.3,3475.4,2.30187]
[1718977633236,1.36636241,3477.2,3475.5,0.55]
[1718977633237,1.86443502,3476.2,3475.5,0.55]
[1718977633420,1.36636241,3477.2,3475.1,2.30206]
[1718977633421,1.36648573,3475.9,3475.1,2.30206]
[1718977633602,1.36648573,3475.9,3475.3,2.30194]
[1718977633823,5.0795,3476.6,3475.3,2.30194]
[1718977633824,5.0795,3476.6,3475.7,2.30168]
[1718977634032,1.36675706,3476.0,3475.5,2.30177]
[1718977634227,5.0795,3476.6,3475.1,0.506472]
[1718977634228,1.86484912,3475.9,3475.1,0.506472]
[1718977634437,1.36675706,3475.6,3475.1,0.506472]
[1718977634653,1.86484912,3475.5,3474.8,2.30226]
[1718977634938,3.0,3476.5,3474.6,2.3024]
[1718977634939,1.86484912,3475.4,3474.6,2.30238]
[1718977635238,1.86484912,3475.3,3474.9,2.30222]
[1718977635458,1.36675706,3475.4,3474.5,2.30248]
[1718977635658,1.36675706,3475.2,3474.2,2.30262]
[1718977635806,0.49820885,3475.3,3473.5,5.01008]
[1718977635807,1.36675706,3475.0,3473.8,2.30289]
[1718977635999,1.36675706,3474.8,3474.0,2.30281]
[1718977636201,0.49820885,3474.7,3474.1,2.30269]
[1718977636431,1.36675706,3474.9,3474.3,2.3026]
[1718977636640,3.0,3475.4,3474.2,2.532939]
[1718977636837,1.36612311,3474.9,3474.3,2.30256]
[1718977637145,3.0,3475.4,3474.4,2.30254]
[1718977637303,1.36591156,3475.1,3474.5,2.7859619]
[1718977637505,3.0,3475.4,3474.2,0.230269]
[1718977637506,1.36591156,3474.9,3474.2,0.230269]
[1718977637840,1.36591156,3474.9,3473.2,2.30328]
[1718977637841,1.36558601,3474.7,3473.5,2.30309]
[1718977638133,1.36558601,3474.7,3473.7,2.30299]
[1718977638134,3.95680187,3474.6,3473.7,2.30299]
[1718977638334,2.09294605,3474.5,3473.6,2.30307]
[1718977638538,2.09294605,3474.5,3473.7,0.460622]
[1718977638740,3.0,3475.0,3473.7,0.460622]
[1718977638741,1.36558601,3474.6,3473.7,0.460622]
[1718977639041,1.36558601,3474.8,3473.6,2.30307]
[1718977639246,1.77071966,3476.2,3473.1,2.30336]
[1718977639247,1.36558601,3475.4,3474.5,2.30244]
[1718977639543,1.36558601,3475.4,3474.2,2.707]
[1718977639544,4.8698,3476.0,3474.8,2.30228]
[1718977639860,1.36583959,3475.7,3474.9,2.76838412]
[1718977640039,2.09233759,3475.6,3475.2,2.30199]
[1718977640229,2.09233759,3475.6,3474.2,2.707]
[1718977640428,1.36583959,3476.0,3474.7,2.707]
[1718977640615,2.09212515,3475.9,3475.0,2.30213]
[1718977640820,0.49813268,3475.8,3475.1,2.30209]
[1718977641016,2.09212515,3475.7,3475.2,2.302]
[1718977641331,5.0978,3475.5,3473.3,5.2603]
[1718977641548,1.36537481,3474.4,3473.4,1.39303]
[1718977641841,2.09212515,3474.3,3473.6,2.30307]
[1718977642051,2.09212515,3474.2,3474.0,2.30281]
[1718977642219,2.09212515,3474.5,3473.9,2.30287]
[1718977642424,2.09303733,3474.4,3473.9,2.30287]
[1718977642722,3.0,3475.4,3473.9,2.30287]
[1718977642723,1.3656265,3474.8,3473.9,2.30287]
[1718977642933,2.0929332,3474.7,3474.1,2.30274]
[1718977643134,5.0929332,3474.7,3474.1,2.30274]
[1718977643329,5.0929332,3474.7,3474.0,0.267248]
[1718977643330,2.0929332,3474.6,3474.4,4.60507]
[1718977643531,1.3656265,3475.0,3474.4,2.30252]
[1718977643743,2.09284975,3474.9,3474.5,2.30245]
[1718977644065,2.09284975,3474.8,3474.4,0.460522]
[1718977644363,1.3656265,3475.1,3474.4,0.460522]
[1718977644512,3.45834041,3475.0,3474.1,2.3027]
[1718977644714,2.09271391,3474.9,3474.5,2.30245]
[1718977644964,2.09271391,3474.8,3474.7,2.30235]
[1718977645268,1.36595472,3475.4,3474.8,0.230235]
[1718977645420,1.36595472,3475.4,3474.6,2.30236]
[1718977645421,2.59079715,3475.3,3475.0,2.3021]
[1718977645618,1.48057733,3476.2,3475.0,2.3021]
[1718977645619,1.18060501,3476.2,3475.2,2.30199]
[1718977645824,1.36602202,3475.6,3475.2,2.30201]
[1718977646122,1.36602202,3476.0,3475.3,2.30195]
[1718977646344,1.18060501,3476.6,3475.1,2.30208]
[1718977646546,1.36621271,3475.6,3474.7,2.3023]
[1718977646715,2.09223845,3475.5,3474.5,2.30244]
[1718977646923,1.36621271,3475.3,3474.2,5.2246]
[1718977647178,1.36621271,3474.9,3473.9,2.30284]
[1718977647321,3.45845116,3474.8,3474.1,2.30274]
[1718977647519,1.36621271,3474.6,3473.8,2.30291]
[1718977647721,2.09223845,3474.5,3473.7,2.67259]
[1718977647958,1.3661677,3474.5,3473.7,0.36961]
[1718977648126,2.59146267,3474.4,3473.7,2.67262]
[1718977648335,2.09310447,3474.3,3473.8,2.30294]
[1718977648636,2.09310447,3474.3,3473.7,0.36961]
[1718977648834,1.3661677,3474.7,3474.2,2.30265]
[1718977649072,6.51728534,3475.6,3474.1,2.30274]
[1718977649073,3.95732828,3474.6,3474.1,2.30274]
[1718977649218,2.59116058,3474.5,3474.1,2.30274]
[1718977649424,1.3661677,3474.6,3474.3,2.3026]
[1718977649618,1.3661677,3474.6,3474.4,2.30253]
[1718977650065,6.51728534,3475.6,3474.5,2.30248]
[1718977650066,1.3661677,3474.8,3474.5,2.30248]
[1718977650224,1.3661677,3474.9,3474.3,2.30256]
[1718977650424,1.3661677,3474.9,3474.5,2.30242]
[1718977650624,1.3661677,3474.9,3473.8,0.307661]
[1718977650827,3.0,3475.5,3474.0,2.30281]
[1718977650828,1.36625857,3474.7,3474.0,2.30281]
[1718977651054,1.36625857,3474.7,3473.8,2.610591]
[1718977651055,0.49830291,3474.6,3473.8,0.307661]
[1718977651265,3.45923814,3474.5,3473.9,2.30287]
[1718977651564,1.36625857,3474.5,3473.9,0.4913531]
[1718977651743,1.36625857,3474.5,3473.5,2.707]
[1718977651951,0.49833903,3474.4,3473.6,2.30307]
[1718977652150,1.36625857,3474.5,3473.8,2.30294]
[1718977652454,1.36625857,3474.5,3473.7,0.230307]
[1718977652455,0.49833527,3474.4,3473.7,0.230307]
[1718977652660,1.86459384,3474.4,3473.4,2.30321]
[1718977652881,4.18060501,3475.2,3474.2,2.30264]
[1718977652882,1.36625857,3474.6,3474.2,2.30264]
[1718977653025,0.49831502,3474.5,3474.3,2.30261]
[1718977653231,1.36625857,3475.0,3474.7,2.30235]
[1718977653533,3.0,3475.4,3474.2,2.30267]
[1718977653737,1.36596355,3475.0,3474.7,2.30231]
[1718977653928,1.36596355,3475.1,3474.7,2.30231]
[1718977654126,1.36596355,3475.2,3475.1,2.30209]
[1718977654324,1.36596355,3475.2,3475.0,2.30213]
[1718977654325,1.36596355,3475.4,3475.0,2.30209]
[1718977654526,8.76596355,3475.5,3475.3,2.30195]
[1718977654763,8.76596355,3475.5,3474.9,2.30216]
[1718977654971,8.76596355,3475.5,3474.9,0.460444]
[1718977655151,0.49819989,3475.4,3475.0,2.30214]
[1718977655328,8.76596355,3475.5,3474.9,0.460444]
[1718977655656,0.49819931,3475.4,3474.9,0.460444]
[1718977655856,1.86416286,3475.4,3474.6,2.30236]
[1718977656059,1.36596355,3475.4,3474.8,2.30228]
[1718977656260,1.36596355,3475.4,3474.9,2.3022]
[1718977656424,1.36596355,3475.4,3474.2,2.30265]
[1718977656630,7.4,3475.5,3474.6,2.30241]
[1718977656631,1.36531955,3475.2,3474.6,2.30241]
[1718977656940,1.86356184,3475.1,3474.6,2.30242]
[1718977657139,1.36531955,3475.1,3474.6,2.30242]
[1718977657363,1.36531955,3475.1,3474.7,2.30234]
[1718977657663,1.36531955,3475.3,3474.8,2.30229]
[1718977657859,1.86354798,3475.2,3474.6,2.8129447]
[1718977658160,1.86354798,3475.1,3474.6,2.30236]
[1718977658467,7.4,3475.5,3474.5,2.30248]
[1718977658468,1.8633283,3475.0,3474.5,2.30248]
[1718977658627,1.36506026,3475.0,3474.5,2.30248]
[1718977658823,0.49826804,3474.9,3473.9,4.6075]
[1718977659161,1.86333183,3474.8,3474.0,2.30278]
[1718977659363,3.0,3475.2,3474.0,2.30278]
[1718977659566,2.59116374,3475.1,3473.9,0.8108511]
[1718977659783,1.36518083,3474.7,3474.0,0.54167011]
[1718977659961,1.36518083,3474.7,3473.7,2.30296]
[1718977660258,1.36518083,3474.9,3474.3,2.30261]
[1718977660464,1.36518083,3474.7,3474.2,2.30263]
[1718977660625,1.36518083,3474.8,3474.3,2.30261]
[1718977660831,0.49829543,3474.7,3474.3,2.30261]
[1718977661058,1.36518083,3474.8,3474.2,2.30268]
[1718977661270,0.49829068,3474.7,3474.2,2.30268]
[1718977661562,3.9563628,3474.6,3474.2,2.993506]
[1718977661723,1.36518083,3474.8,3474.2,0.690826]
[1718977661928,3.95631037,3474.7,3474.2,2.993506]
[1718977662149,11.58456593,3475.0,3474.5,4.60496]
[1718977662150,0.49829414,3474.6,3474.5,4.60496]
[1718977662371,10.4,3475.0,3474.7,2.30235]
[1718977662565,10.4,3475.0,3474.5,2.30248]
[1718977662566,1.36505476,3474.8,3474.4,2.30254]